bitfinex/quotes_SOLUSD_20250612
["timestamp","ask_amount","ask_price","bid_price","bid_amount"]
[1749700213946,0.42648471,160.09,160.07,5.86]
[1749700215278,26.28432314,160.08,160.07,5.86]
[1749700217138,32.5311997,160.08,160.07,5.86]
[1749700217335,6.5311997,160.08,160.07,5.86]
[1749700217536,6.67336127,160.08,160.07,5.86]
[1749700222645,0.28432314,160.08,160.07,5.86]
[1749700222843,26.28432314,160.08,160.07,5.86]
[1749700223329,6.38836521,160.1,160.07,5.86]
[1749700223647,149.1,160.12,160.07,5.86]
[1749700224453,155.3453606,160.12,160.07,5.86]
[1749700225054,149.1,160.12,160.07,5.86]
[1749700225355,26.0,160.11,160.07,5.86]
[1749700226357,26.0,160.09,160.07,5.86]
[1749700226654,32.24651425,160.09,160.07,5.86]
[1749700227851,0.28432314,160.08,160.07,5.86]
[1749700228240,0.42648471,160.08,160.07,5.86]
[1749700228450,6.67336127,160.08,160.07,5.86]
[1749700231168,0.28432314,160.08,160.07,5.86]
[1749700232447,6.5311997,160.08,160.07,5.86]
[1749700236948,6.67336127,160.08,160.07,5.86]
[1749700238561,25.32301013,160.08,160.07,5.86]
[1749700240269,26.0,160.05,159.99,5.86]
[1749700242452,32.24836365,160.05,159.99,5.86]
[1749700245326,0.28432314,160.04,159.99,5.86]
[1749700245664,0.42648471,160.04,159.98,8.1133]
[1749700247674,32.24882834,160.03,159.98,8.1133]
[1749700251685,0.28432314,160.02,159.97,5.86]
[1749700252598,2.33746717,160.01,159.97,5.86]
[1749700252763,2.33746717,160.0,159.97,5.86]
[1749700252962,2.33734503,160.01,159.97,5.86]
[1749700253176,2.33734581,160.0,159.97,5.86]
[1749700253380,0.28432314,160.02,159.97,5.86]
[1749700253558,2.33733443,160.01,159.97,5.86]
[1749700253776,2.33733443,160.0,159.97,5.86]
[1749700253978,2.33712792,160.01,159.97,5.86]
[1749700254185,2.33724914,160.0,159.97,5.86]
[1749700254384,2.33726421,160.02,159.97,5.86]
[1749700254564,28.33730731,160.01,159.97,5.86]
[1749700254764,26.0,160.01,159.97,5.86]
[1749700255264,2.33746229,160.0,159.97,5.86]
[1749700255465,26.0,160.01,159.97,5.86]
[1749700255671,2.33746338,160.0,159.97,5.86]
[1749700255881,2.33745562,160.0,159.97,5.86]
[1749700256378,2.33717591,160.0,159.97,5.86]
[1749700256561,26.0,160.01,159.97,5.86]
[1749700257087,26.0,160.02,159.97,5.86]
[1749700257466,2.33730664,160.01,159.97,5.86]
[1749700257664,26.0,160.0,159.97,5.86]
[1749700260333,32.24926785,160.02,159.97,5.86]
[1749700260993,26.0,160.02,159.97,5.86]
[1749700262083,26.0,160.01,159.97,5.86]
[1749700262890,26.0,160.02,159.97,5.86]
[1749700263394,26.0,160.01,159.97,5.86]
[1749700267197,26.0,160.02,159.97,5.86]
[1749700267713,0.28432314,160.04,159.97,5.86]
[1749700267883,26.0,160.02,159.97,5.86]
[1749700268402,4.65837819,160.05,159.97,5.86]
[1749700268599,26.0,160.03,159.97,5.86]
[1749700269700,26.0,160.02,159.97,5.86]
[1749700270317,26.0,160.03,159.97,5.86]
[1749700271909,26.0,160.02,159.97,5.86]
[1749700273687,26.0,160.03,159.97,5.86]
[1749700275006,26.0,160.04,159.97,5.86]
[1749700278289,14.39448748,160.07,159.99,7.697]
[1749700278290,26.0,160.05,159.99,7.697]
[1749700278491,26.0,160.05,160.0,44.78964886]
[1749700280009,26.0,160.07,160.01,0.14216157]
[1749700280211,26.0,160.09,160.01,0.14216157]
[1749700280399,1.6514,160.11,160.01,0.14216157]
[1749700280602,26.0,160.09,160.01,0.14216157]
[1749700281518,2.34152977,160.08,160.01,0.14216157]
[1749700281714,2.34153012,160.07,160.01,0.14216157]
[1749700281917,26.0,160.08,160.01,0.14216157]
[1749700282301,2.341518,160.07,160.01,0.14216157]
[1749700282621,26.0,160.08,160.01,0.14216157]
[1749700282842,2.34159186,160.07,160.01,0.14216157]
[1749700283024,2.34155532,160.06,160.01,0.14216157]
[1749700283315,26.0,160.08,160.01,0.14216157]
[1749700283697,2.34153599,160.07,160.01,0.14216157]
[1749700283897,26.0,160.08,160.01,0.14216157]
[1749700284112,2.34153012,160.07,160.01,0.14216157]
[1749700284327,26.0,160.08,160.01,0.14216157]
[1749700284621,2.3415303,160.07,160.01,0.14216157]
[1749700284806,26.0,160.08,160.01,0.14216157]
[1749700285204,2.3415303,160.07,160.01,0.14216157]
[1749700285405,26.0,160.08,160.01,0.14216157]
[1749700285623,2.34153065,160.07,160.01,0.14216157]
[1749700285925,2.34153443,160.06,160.01,0.14216157]
[1749700286097,2.34153477,160.07,160.01,0.14216157]
[1749700286301,26.0,160.08,160.01,0.14216157]
[1749700286501,2.34151738,160.07,160.01,0.14216157]
[1749700286701,26.0,160.08,160.01,0.14216157]
[1749700287207,4.66801729,160.11,160.01,0.42648471]
[1749700287411,2.34128184,160.1,160.03,18.79181043]
[1749700287605,2.34126478,160.09,160.03,18.79181043]
[1749700287805,26.0,160.12,160.03,18.79181043]
[1749700288222,2.34122067,160.11,160.03,18.79181043]
[1749700288431,26.0,160.12,160.03,18.79181043]
[1749700288931,28.3411605,160.11,160.03,18.79181043]
[1749700289222,28.3411605,160.1,160.03,18.79181043]
[1749700289426,26.0,160.1,160.03,18.79181043]
[1749700290526,32.24572714,160.11,160.03,18.64964886]
[1749700293930,0.28432314,160.1,160.03,5.84]
[1749700294937,2.06828471,160.1,160.03,5.84]
[1749700295111,13.05618105,160.1,160.03,5.84]
[1749700295714,26.0,160.06,160.03,5.84]
[1749700297927,32.24775388,160.06,160.03,5.84]
[1749700300337,0.28432314,160.05,160.03,5.84]
[1749700302332,6.24843789,160.04,160.03,5.84]
[1749700302633,6.53249335,160.05,160.03,5.84]
[1749700303639,2.34034041,160.04,160.03,5.84]
[1749700303844,2.34064976,160.04,160.03,5.84]
[1749700304024,2.34085336,160.04,160.03,5.84]
[1749700304220,6.53249335,160.05,160.03,5.84]
[1749700304449,2.3409555,160.04,160.03,5.84]
[1749700304857,2.34101039,160.04,160.03,5.84]
[1749700305229,6.53249335,160.05,160.03,5.84]
[1749700305430,2.34099025,160.04,160.03,5.84]
[1749700305647,2.34099719,160.04,160.03,5.84]
[1749700305849,2.3409913,160.04,160.03,5.84]
[1749700306036,2.34107527,160.04,160.03,5.84]
[1749700306239,2.34117473,160.04,160.03,5.84]
[1749700306625,2.34117787,160.04,160.03,5.84]
[1749700306848,26.0,160.04,160.03,5.84]
[1749700307244,28.34126229,160.04,160.03,5.84]
[1749700307436,26.0,160.04,160.03,5.84]
[1749700307631,2.34126229,160.04,160.03,5.84]
[1749700307831,32.24775745,160.06,160.03,5.84]
[1749700308046,2.34120211,160.05,160.03,5.84]
[1749700308251,2.34120289,160.04,160.03,5.84]
[1749700308440,2.34120177,160.04,160.03,5.84]
[1749700308736,2.34119352,160.04,160.03,5.84]
[1749700308945,32.24775745,160.06,160.03,5.84]
[1749700309138,2.34121356,160.05,160.03,5.84]
[1749700309351,2.34121356,160.04,160.03,5.84]
[1749700309656,2.34100362,160.04,160.03,5.84]
[1749700309953,2.34097274,160.04,160.03,5.84]
[1749700310147,0.28432314,160.05,160.03,5.84]
[1749700310366,2.34098345,160.04,160.03,5.84]
[1749700310554,2.34098267,160.04,159.98,5.84]
[1749700310741,2.34098151,160.03,159.98,5.84]
[1749700311057,2.34098151,160.02,159.98,5.84]
[1749700311265,32.24859307,160.04,159.98,5.84]
[1749700316374,26.0,160.04,159.98,5.84]
[1749700326568,26.0,160.07,159.99,26.40244886]
[1749700326769,4.6568116,160.1,160.0,0.14216157]
[1749700326945,4.6568116,160.1,160.03,0.14216157]
[1749700327150,14.73215698,160.14,160.04,18.64964886]
[1749700327458,26.0,160.11,160.04,18.64964886]
[1749700339379,32.24581828,160.11,160.03,7.7528]
[1749700339671,26.0,160.08,160.02,26.1]
[1749700340173,26.0,160.08,160.0,18.64964886]
[1749700340556,26.0,160.08,160.0,44.74964886]
[1749700340767,32.24696924,160.08,159.99,8.109]
[1749700340979,26.0,160.05,159.97,18.64964886]
[1749700341275,26.0,160.05,159.97,5.84]
[1749700341654,26.0,160.04,159.97,5.84]
[1749700342172,26.0,160.05,159.97,5.84]
[1749700342376,6.24882834,160.03,159.97,5.84]
[1749700343659,0.28432314,160.03,159.97,5.84]
[1749700345580,6.24921884,160.02,159.97,5.84]
[1749700345882,26.28432314,160.01,159.97,5.84]
[1749700349182,6.53393407,160.01,159.97,5.84]
[1749700350982,0.14216157,160.0,159.97,5.84]
[1749700351189,26.28432314,159.98,159.97,5.84]
[1749700351477,26.42648471,159.98,159.97,5.84]
[1749700352376,32.67726605,159.98,159.97,5.84]
[1749700353264,32.67726605,159.98,159.9,7.8933]
[1749700353265,0.14216157,159.97,159.89,5.82]
[1749700354176,19.07613357,159.97,159.89,5.82]
[1749700354374,0.28432314,159.95,159.89,5.82]
[1749700365180,26.0,159.93,159.89,5.82]
[1749700366587,6.25283337,159.93,159.85,5.82]
[1749700366805,26.0,159.9,159.85,5.82]
[1749700367779,26.0,159.93,159.85,31.92]
[1749700369197,32.25299498,159.93,159.85,31.92]
[1749700369603,26.0,159.93,159.85,31.92]
[1749700369812,26.0,159.91,159.86,7.9654]
[1749700374784,26.0,159.91,159.85,31.92]
[1749700374785,26.0,159.91,159.85,5.82]
[1749700374987,26.0,159.91,159.85,31.92]
[1749700375488,26.0,159.91,159.85,5.82]
[1749700376782,6.25390869,159.9,159.85,5.82]
[1749700377798,26.0,159.87,159.85,5.82]
[1749700378790,32.25514488,159.87,159.85,5.82]
[1749700380400,26.0,159.87,159.85,5.82]
[1749700380606,26.0,159.86,159.85,5.82]
[1749700380910,1.6192,159.91,159.85,5.82]
[1749700381104,26.0,159.87,159.85,5.82]
[1749700382089,26.0,159.88,159.85,5.82]
[1749700383017,32.25495936,159.88,159.85,5.82]
[1749700383523,0.42648471,159.87,159.85,5.82]
[1749700383902,0.42648471,159.87,159.78,50.56964886]
[1749700384105,0.42648471,159.87,159.78,5.82]
[1749700384416,0.28432314,159.83,159.78,5.82]
[1749700389725,6.5410201,159.83,159.78,5.82]
[1749700390719,26.0,159.8,159.74,5.82]
[1749700391299,6.25784665,159.8,159.74,5.82]
[1749700391501,26.0,159.77,159.74,5.82]
[1749700392528,26.0,159.83,159.74,5.82]
[1749700392710,26.0,159.81,159.74,5.82]
[1749700393732,26.0,159.82,159.75,7.6969]
[1749700393913,1.6043,159.89,159.76,44.89181043]
[1749700394226,26.0,159.86,159.76,44.89181043]
[1749700394611,0.28432314,159.88,159.76,44.89181043]
[1749700395026,26.0,159.86,159.76,44.89181043]
[1749700395811,32.53902077,159.88,159.76,44.89181043]
[1749700396525,26.0,159.87,159.77,0.28432314]
[1749700396713,26.0,159.88,159.77,0.28432314]
[1749700397610,155.3531828,159.92,159.82,18.64964886]
[1749700397926,26.0,159.89,159.84,18.64964886]
[1749700398418,26.0,159.89,159.83,31.92]
[1749700400231,6.25399299,159.9,159.83,31.92]
[1749700404323,26.0,159.89,159.83,31.92]
[1749700404936,26.0,159.89,159.84,18.64964886]
[1749700406832,2.33287079,159.88,159.84,18.64964886]
[1749700407033,26.0,159.89,159.84,18.64964886]
[1749700407250,2.33290106,159.88,159.84,18.64964886]
[1749700407415,26.0,159.89,159.84,18.64964886]
[1749700408042,2.33293009,159.88,159.84,18.64964886]
[1749700408237,26.0,159.89,159.84,18.64964886]
[1749700408541,2.33296754,159.88,159.84,18.64964886]
[1749700409041,2.33294668,159.88,159.84,18.64964886]
[1749700409546,2.33295549,159.88,159.84,18.64964886]
[1749700409723,2.33297548,159.88,159.84,18.64964886]
[1749700410042,26.0,159.89,159.84,18.64964886]
[1749700410246,2.33298865,159.88,159.84,18.64964886]
[1749700410431,26.0,159.89,159.84,18.64964886]
[1749700410629,2.33297152,159.88,159.83,31.92]
[1749700410826,2.33267336,159.88,159.83,31.92]
[1749700411139,2.3327336,159.88,159.83,31.92]
[1749700411712,2.33307541,159.89,159.83,31.92]
[1749700411941,2.33307074,159.88,159.83,31.92]
[1749700412151,2.33307074,159.89,159.83,31.92]
[1749700412348,2.33308813,159.88,159.83,31.92]
[1749700412650,2.33306647,159.89,159.84,18.64964886]
[1749700412858,2.33298807,159.88,159.84,18.64964886]
[1749700413143,34.58658091,159.91,159.84,18.64964886]
[1749700413327,2.33299076,159.9,159.84,18.64964886]
[1749700413643,2.33288139,159.89,159.84,18.64964886]
[1749700413839,2.33288139,159.88,159.83,31.92]
[1749700414029,8.58097,159.9,159.83,31.92]
[1749700414348,8.58100256,159.9,159.83,31.92]
[1749700414646,8.58101943,159.9,159.83,31.92]
[1749700415140,6.25390971,159.9,159.83,31.92]
[1749700415331,8.58098714,159.9,159.83,31.92]
[1749700415847,8.58100717,159.9,159.83,31.92]
[1749700416544,8.58098714,159.9,159.83,31.92]
[1749700416856,8.58088899,159.9,159.83,31.92]
[1749700417026,6.25390971,159.9,159.83,31.92]
[1749700417231,8.58065844,159.9,159.83,31.92]
[1749700417436,6.25390971,159.9,159.83,31.92]
[1749700418138,8.58065154,159.9,159.83,31.92]
[1749700418321,6.25390971,159.9,159.83,31.92]
[1749700418521,8.58080583,159.9,159.83,31.92]
[1749700419139,8.58080311,159.9,159.83,31.92]
[1749700419446,8.58079084,159.9,159.83,31.92]
[1749700419622,8.58078221,159.9,159.83,31.92]
[1749700419820,8.58094714,159.9,159.83,31.92]
[1749700420033,8.58095495,159.9,159.83,31.92]
[1749700420331,6.25390971,159.9,159.83,31.92]
[1749700420739,8.58110379,159.9,159.83,31.9]
[1749700421053,8.58104014,159.9,159.83,31.9]
[1749700421243,6.25390971,159.9,159.83,31.9]
[1749700421749,8.58137541,159.9,159.83,31.9]
[1749700421925,8.58143124,159.9,159.83,31.9]
[1749700422132,8.58157748,159.9,159.83,31.9]
[1749700422838,8.58164751,159.9,159.83,31.9]
[1749700423146,26.0,159.88,159.83,31.9]
[1749700424040,26.0,159.88,159.84,18.64964886]
[1749700424435,26.0,159.89,159.84,18.64964886]
[1749700424647,26.0,159.88,159.84,18.64964886]
[1749700425032,26.0,159.88,159.83,31.9]
[1749700426635,6.25439558,159.89,159.83,31.9]
[1749700428153,2.33399193,159.88,159.83,31.9]
[1749700428352,2.33399114,159.88,159.83,31.9]
[1749700428750,2.33401122,159.88,159.83,31.9]
[1749700428948,2.33413171,159.88,159.83,31.9]
[1749700429142,6.25439558,159.89,159.83,31.9]
[1749700429345,2.33413171,159.88,159.83,31.9]
[1749700429857,6.25439558,159.89,159.83,31.9]
[1749700430058,2.33399193,159.88,159.83,31.9]
[1749700430258,6.25439558,159.89,159.83,31.9]
[1749700430553,2.33399193,159.88,159.83,31.9]
[1749700430757,2.33397106,159.88,159.83,31.9]
[1749700431138,6.25439558,159.89,159.83,31.9]
[1749700431353,2.33396319,159.88,159.83,31.9]
[1749700431553,2.33397023,159.88,159.83,31.9]
[1749700431766,6.25439558,159.89,159.83,31.9]
[1749700431934,2.33399244,159.88,159.83,31.9]
[1749700432257,2.33398801,159.88,159.83,31.9]
[1749700432458,2.33398019,159.88,159.83,31.9]
[1749700432831,2.33397676,159.88,159.83,31.9]
[1749700433031,6.25439558,159.89,159.83,31.9]
[1749700433362,2.33400698,159.88,159.83,31.9]
[1749700433565,6.25476821,159.88,159.83,5.82]
[1749700434061,2.33370737,159.87,159.83,5.82]
[1749700434259,2.33368651,159.86,159.83,5.82]
[1749700434461,2.33368574,159.87,159.83,5.82]
[1749700434662,6.25476821,159.88,159.83,5.82]
[1749700434834,6.25518249,159.87,159.83,5.82]
[1749700435496,2.33357231,159.86,159.83,5.82]
[1749700435763,6.25518249,159.87,159.83,5.82]
[1749700435945,2.33402042,159.86,159.83,5.82]
[1749700436138,2.33402428,159.85,159.83,5.82]
[1749700436340,32.25563467,159.86,159.83,5.82]
[1749700436540,2.33388132,159.85,159.83,5.82]
[1749700436773,32.25563467,159.86,159.83,5.82]
[1749700436970,2.33259476,159.85,159.83,5.82]
[1749700437151,32.25563467,159.86,159.83,5.82]
[1749700437470,36.9030959,159.86,159.83,5.82]
[1749700437674,4.65122501,159.85,159.83,5.82]
[1749700437863,32.25563467,159.86,159.83,5.82]
[1749700438065,30.65122501,159.86,159.83,5.82]
[1749700438279,26.0,159.86,159.83,5.82]
[1749700440160,4.65122501,159.88,159.83,5.82]
[1749700440371,26.0,159.89,159.83,5.82]
[1749700440658,30.65122501,159.89,159.83,5.82]
[1749700440866,26.0,159.88,159.83,5.82]
[1749700441270,26.0,159.87,159.83,5.82]
[1749700441683,26.0,159.88,159.83,5.82]
[1749700442065,26.0,159.87,159.83,5.82]
[1749700445684,26.0,159.88,159.84,18.64964886]
[1749700445887,4.65122501,159.9,159.84,18.64964886]
[1749700446063,26.0,159.89,159.84,18.64964886]
[1749700446568,4.65122501,159.91,159.84,44.70964886]
[1749700446771,26.0,159.89,159.84,44.70964886]
[1749700448585,4.65122501,159.92,159.84,44.70964886]
[1749700448761,26.0,159.9,159.84,44.70964886]
[1749700449083,26.0,159.9,159.85,0.14216157]
[1749700449280,4.65122501,159.93,159.85,0.14216157]
[1749700449490,6.97231956,159.95,159.85,0.14216157]
[1749700449787,6.97232112,159.95,159.87,18.79181043]
[1749700450086,4.65122501,159.96,159.89,0.14216157]
[1749700450260,26.0,159.95,159.89,0.14216157]
[1749700450469,26.0,159.96,159.89,0.14216157]
[1749700450666,6.25084598,159.98,159.89,0.14216157]
[1749700450883,26.0,159.95,159.89,0.14216157]
[1749700453680,10.90176277,159.99,159.89,0.14216157]
[1749700453997,26.0,159.96,159.89,0.14216157]
[1749700455530,26.0,159.97,159.89,0.14216157]
[1749700457913,26.0,159.96,159.89,0.14216157]
[1749700458211,32.25049683,159.99,159.89,0.14216157]
[1749700461914,32.25049683,159.99,159.88,26.06]
[1749700461915,26.0,159.96,159.88,0.14216157]
[1749700462209,26.0,159.96,159.9,18.64964886]
[1749700462412,26.0,159.96,159.89,26.04]
[1749700462705,26.0,159.96,159.87,18.64964886]
[1749700462917,26.0,159.96,159.9,18.64964886]
[1749700463883,26.0,159.98,159.91,0.14216157]
[1749700464084,156.94991329,160.01,159.93,18.64964886]
[1749700464492,26.0,159.98,159.93,18.64964886]
[1749700467588,26.0,159.98,159.92,5.78]
[1749700468707,32.2509112,159.98,159.92,5.78]
[1749700468907,0.28432314,159.97,159.92,5.78]
[1749700470090,6.25156289,159.96,159.92,5.78]
[1749700471718,26.0,159.96,159.92,5.78]
[1749700472388,26.0,159.97,159.92,5.78]
[1749700475723,26.0,159.98,159.93,18.64964886]
[1749700476399,26.0,159.97,159.93,18.64964886]
[1749700480803,26.0,159.98,159.92,5.78]
[1749700481321,26.0,159.97,159.92,5.78]
[1749700482220,26.0,159.96,159.92,5.78]
[1749700482727,26.0,159.95,159.92,5.78]
[1749700483109,0.28432314,159.93,159.87,5.78]
[1749700483423,26.0,159.89,159.87,5.78]
[1749700485212,26.0,159.88,159.87,5.78]
[1749700486526,32.25394458,159.9,159.87,5.78]
[1749700486753,26.0,159.9,159.87,5.78]
[1749700487710,26.0,159.89,159.87,5.78]
[1749700488343,32.5378456,159.91,159.87,5.78]
[1749700488698,2.32463012,159.9,159.87,5.78]
[1749700488902,2.32415803,159.89,159.87,5.78]
[1749700489124,2.32415803,159.9,159.87,5.78]
[1749700489327,26.0,159.89,159.87,5.78]
[1749700489836,26.0,159.92,159.87,5.78]
[1749700490012,2.32438267,159.91,159.87,5.78]
[1749700490209,2.32450775,159.91,159.87,5.78]
[1749700490516,26.0,159.92,159.87,5.78]
[1749700490921,2.32448922,159.91,159.87,5.78]
[1749700491108,26.0,159.92,159.87,5.78]
[1749700491310,2.3246867,159.91,159.87,5.78]
[1749700491513,26.0,159.92,159.87,5.78]
[1749700494639,8.15151785,159.95,159.87,5.78]
[1749700494640,26.0,159.91,159.87,5.78]
[1749700494832,26.0,159.93,159.87,5.78]
[1749700496437,26.0,159.92,159.87,5.78]
[1749700498332,32.25327197,159.92,159.87,5.78]
[1749700508329,26.0,159.91,159.87,5.78]
[1749700511548,26.0,159.9,159.87,5.78]
[1749700513960,26.0,159.92,159.87,5.78]
[1749700514134,26.0,159.91,159.87,5.78]
[1749700515957,32.25352245,159.91,159.87,5.78]
[1749700516540,26.0,159.91,159.87,5.78]
[1749700516734,26.0,159.92,159.87,5.78]
[1749700520954,26.0,159.94,159.87,5.78]
[1749700521159,28.32391143,159.93,159.87,5.78]
[1749700521347,26.0,159.93,159.87,5.78]
[1749700521546,26.0,159.92,159.87,5.78]
[1749700522452,26.0,159.93,159.87,5.78]
[1749700523150,26.0,159.92,159.87,5.78]
[1749700523555,26.0,159.94,159.87,5.78]
[1749700524358,2.32404744,159.93,159.87,5.78]
[1749700524558,2.3239838,159.93,159.87,5.78]
[1749700524778,2.3239563,159.93,159.87,5.78]
[1749700524950,2.32433975,159.93,159.87,5.78]
[1749700525151,2.32540332,159.93,159.87,5.78]
[1749700525464,2.32530645,159.93,159.87,5.78]
[1749700525664,26.0,159.94,159.87,5.78]
[1749700525861,2.32470709,159.93,159.87,5.78]
[1749700526063,2.32502536,159.93,159.87,5.78]
[1749700526255,2.32509405,159.93,159.87,5.78]
[1749700526443,2.32507816,159.93,159.87,5.78]
[1749700526862,26.0,159.94,159.87,5.78]
[1749700527270,26.0,159.91,159.87,5.78]
[1749700528050,32.21182122,159.93,159.87,5.78]
[1749700528451,2.32542986,159.92,159.87,5.78]
[1749700528871,32.22502783,159.93,159.87,5.78]
[1749700529057,2.32540813,159.92,159.87,5.78]
[1749700529260,6.96953519,159.92,159.87,5.78]
[1749700529576,2.32557151,159.92,159.87,5.78]
[1749700529766,26.0,159.93,159.87,5.78]
[1749700530618,26.0,159.93,159.87,31.78]
[1749700530868,2.32547336,159.92,159.87,31.78]
[1749700531054,2.32547507,159.92,159.87,5.78]
[1749700531255,32.2527415,159.93,159.87,5.78]
[1749700531566,2.32549935,159.92,159.87,5.78]
[1749700531882,2.32566637,159.92,159.87,5.78]
[1749700532456,2.32590563,159.92,159.87,5.78]
[1749700532773,2.32591673,159.92,159.87,5.78]
[1749700533272,2.32602823,159.92,159.87,5.78]
[1749700533860,2.32603933,159.92,159.87,5.78]
[1749700534180,36.8971985,159.93,159.87,5.78]
[1749700534390,32.25282924,159.93,159.87,5.78]
[1749700535077,36.90020419,159.93,159.87,5.78]
[1749700535282,2.32589169,159.92,159.87,5.78]
[1749700535469,26.0,159.93,159.87,5.78]
[1749700535670,2.32594506,159.92,159.87,5.78]
[1749700535874,2.32596424,159.92,159.87,5.78]
[1749700536104,32.25280327,159.93,159.87,5.78]
[1749700536770,36.9010536,159.93,159.87,5.78]
[1749700536992,32.25280327,159.93,159.87,5.78]
[1749700537672,36.90127913,159.93,159.87,5.78]
[1749700537873,32.25280327,159.93,159.87,5.78]
[1749700538485,36.90295347,159.93,159.87,5.78]
[1749700538684,6.97790278,159.92,159.87,5.78]
[1749700538890,10.90341787,159.92,159.87,5.78]
[1749700539193,13.2309436,159.92,159.87,5.78]
[1749700539366,13.23014123,159.92,159.87,5.78]
[1749700539681,13.23009703,159.92,159.87,5.78]
[1749700539876,13.23006761,159.92,159.87,5.78]
[1749700540081,6.97679994,159.91,159.87,5.78]
[1749700540283,4.6501502,159.91,159.87,5.78]
[1749700540510,6.97665758,159.91,159.87,5.78]
[1749700540670,6.97660391,159.91,159.87,5.78]
[1749700540866,13.23036806,159.91,159.87,5.78]
[1749700541070,6.25376415,159.91,159.87,5.78]
[1749700541298,13.23117779,159.91,159.87,5.78]
[1749700541469,6.25376415,159.91,159.87,5.78]
[1749700541675,13.23146369,159.91,159.87,5.78]
[1749700541874,6.25376415,159.91,159.87,5.78]
[1749700542073,6.97804408,159.91,159.87,5.78]
[1749700542279,6.97797465,159.92,159.87,5.78]
[1749700542483,26.28432314,159.93,159.87,5.78]
[1749700542484,4.6501502,159.91,159.87,5.78]
[1749700542688,6.97797991,159.9,159.87,5.78]
[1749700542903,26.0,159.9,159.87,5.78]
[1749700543204,2.3277387,159.89,159.87,5.78]
[1749700543504,6.97789233,159.89,159.87,5.78]
[1749700544006,2.3277049,159.89,159.87,5.78]
[1749700544202,2.3276849,159.89,159.87,5.78]
[1749700544387,2.3276804,159.89,159.87,5.78]
[1749700544704,2.32746314,159.89,159.87,5.78]
[1749700544915,4.6501502,159.89,159.87,5.78]
[1749700545205,2.32678672,159.89,159.87,5.78]
[1749700545706,32.25394856,159.9,159.87,5.78]
[1749700545899,2.32655844,159.89,159.87,5.78]
[1749700546101,6.97666455,159.89,159.87,5.78]
[1749700546281,2.3264152,159.89,159.87,5.78]
[1749700546481,2.32642755,159.89,159.87,5.78]
[1749700546785,32.25394856,159.9,159.87,5.78]
[1749700546988,2.32622614,159.89,159.87,5.78]
[1749700547208,32.25394856,159.9,159.87,5.78]
[1749700547401,2.32623376,159.89,159.87,5.78]
[1749700547582,2.32590762,159.89,159.87,5.78]
[1749700547786,32.25394856,159.9,159.87,5.78]
[1749700548109,2.32466489,159.89,159.87,5.78]
[1749700548282,2.32447079,159.89,159.87,5.78]
[1749700548705,2.32435183,159.89,159.87,5.78]
[1749700548908,2.32433648,159.89,159.87,5.78]
[1749700549113,2.32433218,159.89,159.87,5.78]
[1749700549607,2.32431494,159.89,159.87,5.78]
[1749700549923,2.32456438,159.89,159.87,5.78]
[1749700550097,2.32455549,159.89,159.87,5.78]
[1749700550296,2.32443553,159.89,159.87,5.78]
[1749700550497,2.32444037,159.89,159.87,5.78]
[1749700550886,2.32442472,159.89,159.87,5.78]
[1749700551078,32.25394856,159.9,159.87,5.78]
[1749700551299,8.5784464,159.89,159.87,5.78]
[1749700551609,6.25439654,159.89,159.87,5.78]